bitfinex-derivatives/quotes_BTCF0:USTF0_20260221
["timestamp","ask_amount","ask_price","bid_price","bid_amount"]
[1771645669309,0.014786,67656.0,67647.0,0.488068]
[1771645669310,0.014786,67655.0,67647.0,0.488068]
[1771645669604,0.014787,67654.0,67647.0,0.488068]
[1771645669806,0.014786,67655.0,67647.0,0.488068]
[1771645670000,0.014786,67655.0,67650.0,0.001]
[1771645670610,0.014786,67655.0,67648.0,0.014788]
[1771645671405,0.014786,67656.0,67649.0,0.014788]
[1771645674413,0.014786,67656.0,67648.0,0.014788]
[1771645674414,0.014786,67656.0,67650.0,0.014787]
[1771645676414,0.014784,67664.0,67637.0,0.01479]
[1771645676415,0.014789,67644.0,67637.0,0.01479]
[1771645676628,0.014787,67654.0,67640.0,0.01479]
[1771645676629,0.014788,67647.0,67640.0,0.01479]
[1771645676917,0.014788,67647.0,67639.0,0.01479]
[1771645677713,0.014788,67647.0,67637.0,0.01479]
[1771645677714,0.014789,67645.0,67637.0,0.01479]
[1771645678019,0.014788,67646.0,67630.0,0.45495715]
[1771645678020,0.014789,67642.0,67632.0,0.014791]
[1771645678210,0.014789,67643.0,67637.0,0.001]
[1771645678715,0.014789,67643.0,67635.0,0.014791]
[1771645680007,0.01490254,67644.0,67633.0,0.014791]
[1771645680209,0.014789,67643.0,67634.0,0.014791]
[1771645680405,0.014789,67642.0,67634.0,0.014791]
[1771645680915,0.014789,67641.0,67633.0,0.014791]
[1771645681114,0.01490254,67644.0,67634.0,0.014791]
[1771645681521,0.014789,67641.0,67634.0,0.014791]
[1771645681726,0.014789,67642.0,67634.0,0.014791]
[1771645682418,0.01490254,67644.0,67634.0,0.014791]
[1771645683014,0.014789,67642.0,67634.0,0.014791]
[1771645683405,0.01490254,67644.0,67636.0,0.01479]
[1771645683609,0.00011354,67644.0,67638.0,0.01479]
[1771645685217,0.00011354,67644.0,67638.0,0.02958]
[1771645685612,0.01490254,67644.0,67636.0,0.01479]
[1771645686125,0.01490254,67644.0,67637.0,0.01479]
[1771645686419,0.014788,67648.0,67640.0,0.014789]
[1771645687420,6.69e-05,67647.0,67640.0,0.014789]
[1771645687622,0.0148549,67647.0,67639.0,0.01479]
[1771645688117,1.83696456,67718.0,67643.0,0.640088]
[1771645688118,0.014785,67661.0,67643.0,0.640088]
[1771645688325,0.014785,67661.0,67651.0,0.014787]
[1771645688326,0.014785,67659.0,67651.0,0.014787]
[1771645688619,0.014785,67659.0,67652.0,0.014787]
[1771645689006,0.014785,67663.0,67652.0,0.014787]
[1771645689215,0.014785,67662.0,67654.0,0.014786]
[1771645689422,0.36382514,67675.0,67648.0,0.014788]
[1771645689423,0.05828841,67670.0,67648.0,0.014788]
[1771645689613,0.014786,67656.0,67649.0,0.014787]
[1771645692021,0.014786,67656.0,67646.0,0.014788]
[1771645692217,0.014786,67656.0,67640.0,0.014789]
[1771645692218,0.014787,67654.0,67647.0,0.014788]
[1771645692923,0.014787,67653.0,67645.0,0.014788]
[1771645693722,0.014787,67653.0,67643.0,0.014789]
[1771645693723,0.014787,67651.0,67641.0,0.014789]
[1771645693918,0.014787,67652.0,67644.0,0.014789]
[1771645695422,0.014787,67651.0,67644.0,0.014789]
[1771645698619,0.014787,67650.0,67643.0,0.014789]
[1771645698820,0.014787,67650.0,67642.0,0.014789]
[1771645699016,0.014788,67648.0,67638.0,0.01479]
[1771645699428,0.014788,67648.0,67640.0,0.014789]
[1771645699923,0.014788,67647.0,67639.0,0.01479]
[1771645700123,0.014788,67647.0,67640.0,0.01479]
[1771645700322,0.014788,67647.0,67639.0,0.01479]
[1771645701225,0.014788,67649.0,67639.0,0.01479]
[1771645701527,0.014788,67649.0,67636.0,0.654878]
[1771645701528,0.014788,67646.0,67638.0,0.01479]
[1771645701928,0.014788,67646.0,67639.0,0.01479]
[1771645704131,0.014789,67645.0,67635.0,0.014791]
[1771645704334,0.014788,67646.0,67638.0,0.01479]
[1771645704631,0.014789,67644.0,67636.0,0.01479]
[1771645705330,0.014789,67645.0,67636.0,0.01479]
[1771645705729,0.014789,67644.0,67636.0,0.01479]
[1771645706335,0.01479,67638.0,67630.0,0.014792]
[1771645706530,0.02958,67638.0,67630.0,0.014792]
[1771645706734,0.01479,67637.0,67629.0,0.014792]
[1771645706929,0.01479,67637.0,67628.0,0.029584]
[1771645707436,0.01479,67637.0,67629.0,0.014792]
[1771645708233,0.01479,67636.0,67629.0,0.014792]
[1771645708637,0.01479,67636.0,67628.0,0.014792]
[1771645708829,0.01479,67636.0,67629.0,0.014792]
[1771645709134,0.01479,67637.0,67629.0,0.014792]
[1771645709333,0.01479,67636.0,67628.0,0.014792]
[1771645709536,0.01479,67636.0,67629.0,0.014792]
[1771645709730,0.01479,67637.0,67629.0,0.014792]
[1771645711238,0.014791,67636.0,67628.0,0.014792]
[1771645711532,0.014791,67636.0,67629.0,0.014792]
[1771645711736,0.01479,67638.0,67630.0,0.014792]
[1771645713128,0.01479,67637.0,67629.0,0.014792]
[1771645713339,0.01479,67638.0,67630.0,0.014792]
[1771645713532,0.01479,67640.0,67628.0,0.059164]
[1771645713739,0.01479,67639.0,67630.0,0.014792]
[1771645713938,0.01479,67639.0,67629.0,0.014792]
[1771645714131,0.01479,67638.0,67630.0,0.014792]
[1771645716343,0.01479,67638.0,67631.0,0.044372]
[1771645719034,0.01479,67639.0,67631.0,0.044372]
[1771645719943,0.01479,67639.0,67631.0,0.059163]
[1771645721539,0.01479,67638.0,67631.0,0.044372]
[1771645721938,0.01479,67636.0,67628.0,0.014792]
[1771645722139,0.01479,67636.0,67628.0,0.01025104]
[1771645722750,0.014791,67635.0,67615.0,0.56687364]
[1771645723050,0.19682461,67630.0,67622.0,0.014793]
[1771645723348,0.014792,67629.0,67622.0,0.014793]
[1771645724747,0.014792,67629.0,67621.0,0.014794]
[1771645726642,0.014793,67627.0,67619.0,0.014794]
[1771645727342,0.014792,67629.0,67600.0,0.18203261]
[1771645727343,0.56838653,67650.0,67623.0,0.58166664]
[1771645727547,0.01479,67640.0,67631.0,0.014791]
[1771645728346,0.01479,67639.0,67631.0,0.014791]
[1771645730250,0.01479,67639.0,67632.0,0.014791]
[1771645731846,0.014788,67646.0,67626.0,0.56687364]
[1771645732056,0.014788,67646.0,67635.0,0.01479]
[1771645732057,0.014789,67641.0,67635.0,0.01479]
[1771645732251,0.014789,67641.0,67633.0,0.014791]
[1771645732252,0.01479,67640.0,67633.0,0.014791]
[1771645732452,0.01479,67640.0,67633.0,0.029582]
[1771645733052,0.01479,67640.0,67634.0,0.014791]
[1771645733253,0.014788,67648.0,67640.0,0.01479]
[1771645733456,0.014789,67644.0,67638.0,0.01479]
[1771645734157,0.014789,67644.0,67639.0,0.01479]
[1771645734657,0.014789,67643.0,67639.0,0.01479]
[1771645734854,0.01479,67640.0,67635.0,0.014791]
[1771645735047,0.01479,67640.0,67634.0,0.014791]
[1771645735356,0.01479,67640.0,67626.0,0.58166564]
[1771645735357,0.01479,67640.0,67632.0,0.014791]
[1771645736155,0.01479,67639.0,67633.0,0.014791]
[1771645737355,0.01479,67637.0,67630.0,0.014792]
[1771645738455,0.02958,67637.0,67629.0,0.014792]
[1771645738657,0.01479,67636.0,67627.0,0.014792]
[1771645738849,0.014791,67634.0,67627.0,0.014792]
[1771645739155,0.01479,67636.0,67627.0,0.014792]
[1771645739358,0.014791,67634.0,67627.0,0.014792]
[1771645739549,0.01479,67636.0,67626.0,0.014793]
[1771645739749,0.014791,67634.0,67626.0,0.014793]
[1771645740258,0.014791,67634.0,67627.0,0.014792]
[1771645740458,0.014791,67635.0,67628.0,0.014792]
[1771645740956,0.19682261,67640.0,67626.0,0.014793]
[1771645741161,0.01479,67638.0,67630.0,0.014792]
[1771645741458,0.01479,67640.0,67631.0,0.014791]
[1771645741459,0.01479,67639.0,67631.0,0.014791]
[1771645741657,0.01479,67638.0,67631.0,0.014791]
[1771645742057,0.31834052,67656.0,67629.0,0.56687364]
[1771645742259,0.014789,67642.0,67634.0,0.014791]
[1771645743350,0.014789,67644.0,67636.0,0.01479]
[1771645743758,0.014789,67644.0,67636.0,0.02958]
[1771645743956,0.014789,67644.0,67637.0,0.01479]
[1771645744266,0.014788,67646.0,67638.0,0.01479]
[1771645744850,0.014789,67645.0,67638.0,0.01479]
[1771645745365,0.014788,67647.0,67640.0,0.014789]
[1771645745661,0.014786,67656.0,67646.0,0.014788]
[1771645745662,0.014787,67652.0,67646.0,0.014788]
[1771645745963,0.014786,67656.0,67646.0,0.014788]
[1771645746152,0.014787,67652.0,67646.0,0.014788]
[1771645747064,0.014787,67652.0,67647.0,0.014788]
[1771645747761,0.029574,67652.0,67646.0,0.014788]
[1771645748259,0.014787,67651.0,67646.0,0.014788]
[1771645748966,0.014786,67656.0,67650.0,0.014787]
[1771645748967,0.014786,67655.0,67650.0,0.014787]
[1771645749157,0.014786,67656.0,67647.0,0.014788]
[1771645749462,0.014786,67655.0,67648.0,0.014788]
[1771645749662,0.014787,67653.0,67647.0,0.014788]
[1771645750161,0.014787,67653.0,67646.0,0.014788]
[1771645750162,0.2021,67675.0,67650.0,0.60621694]
[1771645750359,0.2021,67675.0,67646.0,0.014788]
[1771645750360,0.18203261,67670.0,67652.0,0.60621694]
[1771645750573,0.014785,67660.0,67653.0,0.014787]
[1771645750762,0.014785,67661.0,67653.0,0.014787]
[1771645750959,0.014785,67661.0,67655.0,0.014786]
[1771645751156,0.014785,67661.0,67650.0,0.19681961]
[1771645751157,0.014782,67676.0,67661.0,0.014785]
[1771645751364,0.014784,67665.0,67660.0,0.014785]
[1771645751566,0.014783,67669.0,67661.0,0.014785]
[1771645751765,0.014784,67666.0,67661.0,0.014785]
[1771645751961,0.014783,67669.0,67661.0,0.014785]
[1771645752161,0.014784,67667.0,67661.0,0.014785]
[1771645752363,0.014784,67666.0,67661.0,0.014785]
[1771645752762,0.014783,67669.0,67659.0,0.014785]
[1771645752962,0.014783,67672.0,67664.0,0.014784]
[1771645753158,0.014783,67671.0,67664.0,0.014784]
[1771645753559,0.014782,67674.0,67665.0,0.014784]
[1771645753970,0.01478,67682.0,67664.0,0.014784]
[1771645753971,0.014783,67672.0,67664.0,0.014784]
[1771645754376,0.014782,67677.0,67664.0,0.014784]
[1771645754377,0.014783,67671.0,67665.0,0.014784]
[1771645755077,0.014782,67674.0,67665.0,0.014784]
[1771645755573,0.014783,67673.0,67665.0,0.014784]
[1771645755772,0.014783,67673.0,67666.0,0.014784]
[1771645756276,0.014783,67673.0,67667.0,0.014784]
[1771645756472,0.014782,67677.0,67658.0,0.014786]
[1771645756473,0.014784,67666.0,67658.0,0.014786]
[1771645756672,0.014784,67665.0,67659.0,0.014785]
[1771645757673,0.014784,67664.0,67658.0,0.001]
[1771645757873,0.014784,67664.0,67658.0,0.015786]
[1771645758077,0.014784,67665.0,67658.0,0.014786]
[1771645759179,0.014784,67665.0,67656.0,0.014786]
[1771645760686,0.014784,67665.0,67658.0,0.014786]
[1771645761270,0.014784,67667.0,67659.0,0.014785]
[1771645763181,0.014784,67667.0,67660.0,0.014785]
[1771645764576,0.05830841,67670.0,67653.0,0.60621694]
[1771645764778,0.05830841,67670.0,67638.0,0.01479]
[1771645764779,0.014785,67662.0,67654.0,0.014786]
[1771645765086,0.014785,67661.0,67654.0,0.014786]
[1771645765278,0.014785,67663.0,67656.0,0.014786]
[1771645766483,0.014785,67663.0,67655.0,0.014786]
[1771645769282,0.014785,67663.0,67656.0,0.014786]
[1771645769583,0.014784,67664.0,67656.0,0.014786]
[1771645773391,0.014785,67663.0,67656.0,0.014786]
[1771645774779,0.014785,67662.0,67653.0,0.014787]
[1771645774984,0.014785,67662.0,67654.0,0.014787]
[1771645775180,0.014785,67661.0,67654.0,0.014787]
[1771645775377,0.014785,67660.0,67653.0,0.014787]
[1771645776483,0.014785,67661.0,67653.0,0.014787]
[1771645776682,0.014785,67661.0,67654.0,0.014786]
[1771645777291,0.014785,67662.0,67655.0,0.014786]
[1771645777494,0.014784,67665.0,67658.0,0.014786]
[1771645778380,0.014784,67665.0,67657.0,0.014786]
[1771645778982,0.014784,67665.0,67658.0,0.014786]
[1771645779381,0.014784,67665.0,67657.0,0.014786]
[1771645787695,0.014784,67664.0,67656.0,0.014786]
[1771645787898,0.014784,67664.0,67656.0,0.029572]
[1771645788303,0.014784,67664.0,67657.0,0.014786]
[1771645789605,0.014784,67664.0,67656.0,0.014786]
[1771645791011,0.014784,67664.0,67656.0,0.029572]
[1771645792414,0.014785,67663.0,67656.0,0.014786]
[1771645792605,0.014784,67664.0,67657.0,0.014786]
[1771645793012,0.014784,67666.0,67658.0,0.014785]
[1771645793810,0.014784,67664.0,67653.0,0.014787]
[1771645794007,0.014785,67663.0,67655.0,0.014786]
[1771645794208,0.014785,67663.0,67656.0,0.014786]
[1771645794517,0.014785,67663.0,67655.0,0.014786]
[1771645794813,0.014785,67662.0,67655.0,0.014786]
[1771645795014,0.014785,67663.0,67656.0,0.014786]
[1771645795316,0.014784,67665.0,67657.0,0.014786]
[1771645795317,0.014784,67664.0,67657.0,0.014786]
[1771645797215,0.014784,67664.0,67657.0,0.029572]
[1771645798608,0.014784,67664.0,67650.0,0.59341513]
[1771645798609,0.31488119,67683.0,67650.0,0.59341513]
[1771645798906,0.13227798,67694.0,67678.0,0.029563]
[1771645798907,0.20039706,67682.0,67678.0,0.029563]
[1771645799109,0.014779,67689.0,67679.0,0.014781]
[1771645799110,0.01478,67686.0,67679.0,0.014781]
[1771645799318,0.01478,67685.0,67679.0,0.014782]
[1771645799620,0.01478,67685.0,67680.0,0.014782]
[1771645799621,0.01478,67684.0,67680.0,0.014782]
[1771645799826,0.01478,67684.0,67677.0,0.014781]
[1771645799827,0.02956,67684.0,67681.0,0.014782]
[1771645800019,0.01478,67683.0,67678.0,0.014782]
[1771645800221,0.014781,67680.0,67678.0,0.014782]
[1771645800424,0.014781,67680.0,67667.0,0.014784]
[1771645800425,0.014783,67672.0,67666.0,0.014784]
[1771645800617,0.014783,67671.0,67666.0,0.014784]
[1771645801113,0.014783,67668.0,67662.0,0.014785]
[1771645801309,0.38407698,67680.0,67659.0,0.28063005]
[1771645801310,0.05830841,67672.0,67659.0,0.28063005]
[1771645801515,0.014784,67666.0,67660.0,0.014785]
[1771645802111,0.014784,67666.0,67658.0,0.014785]
[1771645802315,0.014784,67666.0,67659.0,0.014785]
[1771645802921,0.029568,67666.0,67659.0,0.014785]
[1771645803122,0.014784,67666.0,67657.0,0.014786]
[1771645803322,0.014784,67666.0,67652.0,0.26584505]
[1771645803323,0.014785,67663.0,67656.0,0.014786]
[1771645804021,0.02957,67663.0,67655.0,0.014786]
[1771645804330,0.014785,67663.0,67655.0,0.014786]
[1771645805128,0.014785,67660.0,67652.0,0.28063205]
[1771645805319,0.014785,67660.0,67653.0,0.014787]
[1771645805521,0.014785,67661.0,67653.0,0.014787]
[1771645805838,0.014785,67661.0,67654.0,0.014786]
[1771645806128,0.014784,67665.0,67654.0,0.014786]
[1771645806330,0.014785,67662.0,67654.0,0.014786]
[1771645808239,0.014785,67663.0,67654.0,0.014786]
[1771645809331,0.014785,67663.0,67656.0,0.014786]
[1771645809836,0.014783,67671.0,67658.0,0.014786]
[1771645810020,0.029568,67667.0,67659.0,0.014785]
[1771645810224,0.014783,67671.0,67657.0,0.014786]
[1771645810424,0.014784,67665.0,67657.0,0.014786]
[1771645811739,0.014784,67665.0,67657.0,0.029572]
[1771645812439,0.07309141,67670.0,67660.0,0.014785]
[1771645812635,0.014783,67670.0,67660.0,0.014785]
[1771645812836,0.014782,67676.0,67660.0,0.014785]
[1771645812837,0.014783,67669.0,67662.0,0.014785]
[1771645813138,0.014783,67668.0,67661.0,0.014785]
[1771645815942,0.014783,67668.0,67663.0,0.014785]
[1771645817538,0.014783,67669.0,67663.0,0.014785]
[1771645818841,0.014783,67669.0,67664.0,0.014784]
[1771645820133,0.014783,67670.0,67661.0,0.014785]
[1771645820338,0.014784,67665.0,67659.0,0.014785]
[1771645820544,0.31811285,67679.0,67658.0,0.014786]
[1771645820545,0.02957,67663.0,67658.0,0.014786]
[1771645820841,0.014785,67663.0,67658.0,0.014786]
[1771645821232,0.014785,67661.0,67655.0,0.014786]
[1771645821731,0.014785,67661.0,67654.0,0.014786]
[1771645822134,0.014785,67663.0,67651.0,0.014787]
[1771645822341,0.014786,67659.0,67651.0,0.014787]
[1771645825341,0.014786,67659.0,67650.0,0.014787]
[1771645825342,0.014785,67661.0,67653.0,0.014787]
[1771645825536,0.014785,67663.0,67654.0,0.014786]
[1771645825943,0.014785,67662.0,67654.0,0.014786]
[1771645826348,0.19672269,67670.0,67657.0,0.014786]
[1771645826349,0.014784,67666.0,67657.0,0.014786]
[1771645827045,0.014784,67667.0,67660.0,0.00088]
[1771645827240,0.014784,67668.0,67659.0,0.014785]
[1771645827430,0.014784,67668.0,67658.0,0.19672569]
[1771645827637,0.014783,67670.0,67660.0,0.014785]
[1771645827837,0.014783,67669.0,67661.0,0.014785]
[1771645828239,0.014783,67670.0,67661.0,0.014785]
[1771645828432,0.014783,67669.0,67661.0,0.014785]
[1771645828839,0.014783,67668.0,67661.0,0.014785]
[1771645829240,0.32950116,67688.0,67661.0,0.55772234]
[1771645829444,0.014782,67676.0,67667.0,0.014784]
[1771645829746,0.014782,67676.0,67668.0,0.014783]
[1771645830144,0.19672069,67680.0,67661.0,0.26584505]
[1771645830145,0.014784,67668.0,67661.0,0.26584505]
[1771645830346,0.014783,67669.0,67661.0,0.02957]
[1771645830543,0.014783,67668.0,67660.0,0.014785]
[1771645831245,0.014783,67668.0,67661.0,0.014785]
[1771645833146,0.014783,67669.0,67662.0,0.014785]
[1771645833347,0.014783,67668.0,67660.0,0.014785]
[1771645837452,0.014783,67668.0,67660.0,0.02957]
[1771645837752,0.014783,67672.0,67661.0,0.014785]
[1771645837954,0.014783,67671.0,67663.0,0.014784]
[1771645839048,0.014783,67671.0,67664.0,0.014784]
[1771645839249,0.014783,67673.0,67665.0,0.014784]
[1771645839455,0.014783,67673.0,67666.0,0.014784]
[1771645839654,0.014783,67673.0,67665.0,0.014784]
[1771645840047,0.014783,67672.0,67665.0,0.014784]
[1771645840654,0.014782,67675.0,67667.0,0.014784]
[1771645840858,0.029564,67675.0,67667.0,0.014784]
[1771645841160,0.014782,67674.0,67667.0,0.014784]
[1771645842054,0.014782,67674.0,67668.0,0.0008]
[1771645842260,0.014782,67674.0,67667.0,0.014784]
[1771645842655,0.014783,67673.0,67666.0,0.014784]
[1771645842857,0.014783,67673.0,67666.0,0.029568]
[1771645843960,0.014783,67673.0,67667.0,0.014784]
[1771645844160,0.014782,67674.0,67667.0,0.014784]
[1771645844562,0.014782,67674.0,67668.0,0.014783]
[1771645845050,0.014782,67674.0,67668.0,0.015583]
[1771645845253,0.014783,67673.0,67666.0,0.029568]
[1771645845662,0.014783,67673.0,67667.0,0.014784]
[1771645847661,0.014782,67674.0,67666.0,0.014784]
[1771645847861,0.014782,67673.0,67667.0,0.014783]
[1771645849258,0.014783,67672.0,67666.0,0.014784]
[1771645849558,0.014783,67672.0,67666.0,0.029568]
[1771645849853,0.014782,67676.0,67663.0,0.53821428]
[1771645850055,0.014782,67675.0,67667.0,0.014783]
[1771645850257,0.014782,67673.0,67667.0,0.014783]
[1771645851065,0.014782,67673.0,67667.0,0.015663]
[1771645851265,0.014782,67675.0,67668.0,0.014783]
[1771645851463,0.014782,67674.0,67668.0,0.014783]
[1771645853166,0.014782,67673.0,67668.0,0.014783]
[1771645854966,0.014782,67674.0,67669.0,0.014783]
[1771645856564,0.014782,67673.0,67669.0,0.014783]
[1771645856765,0.014782,67673.0,67668.0,0.014783]
[1771645857465,0.014782,67675.0,67668.0,0.029566]
[1771645857466,0.014782,67674.0,67668.0,0.029566]
[1771645857767,0.014782,67674.0,67668.0,0.014783]
[1771645858266,0.014782,67674.0,67669.0,0.014783]
[1771645859268,0.014782,67673.0,67668.0,0.014783]
[1771645862974,0.014782,67674.0,67668.0,0.014783]
[1771645863867,0.014783,67672.0,67666.0,0.014784]
[1771645864069,0.014782,67673.0,67667.0,0.014783]
[1771645864268,0.014782,67673.0,67668.0,0.014783]
[1771645865373,0.014782,67673.0,67667.0,0.014784]
[1771645878477,0.014782,67676.0,67668.0,0.014783]
[1771645878664,0.014781,67679.0,67670.0,0.014783]
[1771645879071,0.01478,67684.0,67669.0,0.18193969]
[1771645879272,0.01478,67683.0,67676.0,0.014782]
[1771645879776,0.01478,67685.0,67676.0,0.014782]
[1771645879971,0.01478,67683.0,67676.0,0.029564]
[1771645880172,0.01478,67685.0,67676.0,0.029564]
[1771645880375,0.01478,67683.0,67676.0,0.029564]
[1771645881065,0.01478,67683.0,67677.0,0.014781]
[1771645881280,0.01478,67685.0,67677.0,0.014781]
[1771645881882,0.01478,67684.0,67678.0,0.014781]
[1771645882083,0.01478,67683.0,67677.0,0.014781]
[1771645882279,0.014781,67682.0,67675.0,0.014782]
[1771645882483,0.014781,67680.0,67675.0,0.014782]
[1771645884475,0.014781,67681.0,67675.0,0.014782]
[1771645884974,0.01478,67682.0,67676.0,0.014782]
[1771645885283,0.01478,67682.0,67675.0,0.014782]
[1771645885284,0.014781,67681.0,67675.0,0.014782]
[1771645886286,0.014781,67681.0,67674.0,0.014782]
[1771645887086,0.014781,67681.0,67675.0,0.00088]
[1771645887388,0.014781,67681.0,67674.0,0.014782]
[1771645888482,0.014781,67680.0,67674.0,0.014782]
[1771645889476,0.014781,67681.0,67674.0,0.014782]
[1771645894388,0.01478,67682.0,67675.0,0.014782]
[1771645895991,0.01478,67683.0,67675.0,0.014782]
[1771645896291,0.01478,67683.0,67676.0,0.014782]
[1771645897192,0.01478,67682.0,67676.0,0.014782]
[1771645897491,0.01478,67683.0,67676.0,0.014782]
[1771645897893,0.01478,67683.0,67677.0,0.014781]
[1771645899089,0.01478,67683.0,67677.0,0.015621]
[1771645899295,0.01478,67683.0,67677.0,0.014781]
[1771645901290,0.01478,67683.0,67678.0,0.014781]
[1771645902689,0.01478,67683.0,67678.0,0.029562]
[1771645902996,0.01478,67683.0,67678.0,0.014781]
[1771645903297,0.01478,67682.0,67678.0,0.014781]
[1771645904299,0.01478,67683.0,67678.0,0.014781]
[1771645905596,0.014779,67689.0,67680.0,0.014781]
[1771645905798,0.014779,67688.0,67681.0,0.01478]
[1771645905993,0.014779,67689.0,67682.0,0.01478]
[1771645906193,0.014779,67688.0,67682.0,0.01478]
[1771645906892,0.014779,67687.0,67681.0,0.014781]
[1771645907092,0.01478,67683.0,67677.0,0.014781]
[1771645907292,0.014779,67688.0,67677.0,0.014781]
[1771645907293,0.02956,67686.0,67679.0,0.014781]
[1771645907492,0.01478,67685.0,67678.0,0.014781]
[1771645907899,0.01478,67684.0,67677.0,0.014781]
[1771645908100,0.01478,67685.0,67678.0,0.014781]
[1771645908693,0.014781,67678.0,67668.0,0.28062805]
[1771645908990,0.014781,67680.0,67671.0,0.014783]
[1771645908991,0.014781,67679.0,67671.0,0.014783]
[1771645909193,0.014782,67676.0,67660.0,0.28063005]
[1771645909409,0.014782,67676.0,67667.0,0.014784]
[1771645909593,0.014782,67676.0,67668.0,0.014783]
[1771645909902,0.014782,67675.0,67668.0,0.014783]
[1771645911997,0.014782,67675.0,67658.0,0.53544991]
[1771645911998,0.014783,67669.0,67662.0,0.014785]
[1771645912194,0.014783,67670.0,67663.0,0.014784]
[1771645913202,0.014783,67670.0,67664.0,0.014784]
[1771645913498,0.014783,67672.0,67664.0,0.014784]
[1771645915103,0.014783,67671.0,67664.0,0.014784]
[1771645919611,0.014783,67672.0,67664.0,0.029568]
[1771645919802,0.014783,67672.0,67665.0,0.014784]
[1771645921713,0.014783,67672.0,67664.0,0.014784]
[1771645922199,0.014783,67671.0,67664.0,0.014784]
[1771645925415,0.014783,67671.0,67664.0,0.029568]
[1771645926006,0.014783,67671.0,67664.0,0.014784]
[1771645927016,0.014783,67671.0,67664.0,0.029568]
[1771645928008,0.014783,67671.0,67665.0,0.014784]
[1771645929612,0.014783,67672.0,67665.0,0.014784]
[1771645932919,0.05827021,67680.0,67658.0,0.53544991]
[1771645933121,0.1294871,67704.0,67673.0,0.014782]
[1771645933122,0.014779,67688.0,67673.0,0.014782]
[1771645933316,0.014781,67678.0,67672.0,0.014783]
[1771645934213,0.014781,67678.0,67672.0,0.029565]
[1771645934816,0.014781,67678.0,67673.0,0.014782]
[1771645937115,0.01478,67683.0,67674.0,0.014782]
[1771645937116,0.014781,67679.0,67674.0,0.014782]
[1771645937620,0.029562,67679.0,67674.0,0.014782]
[1771645939323,0.014781,67677.0,67672.0,0.014782]
[1771645940226,0.014781,67679.0,67672.0,0.014782]
[1771645940426,0.014782,67677.0,67672.0,0.014782]
[1771645941124,0.014782,67677.0,67671.0,0.014783]
[1771645941323,0.014782,67677.0,67671.0,0.029566]
[1771645941725,0.014781,67678.0,67671.0,0.014783]
[1771645941924,0.014781,67678.0,67671.0,0.029566]
[1771645942125,0.014781,67677.0,67670.0,0.014783]
[1771645946227,0.014781,67679.0,67670.0,0.014783]
[1771645946431,0.014781,67678.0,67671.0,0.014783]
[1771645947727,0.014781,67680.0,67673.0,0.014782]
[1771645948332,0.014781,67679.0,67672.0,0.014782]
[1771645948533,0.014781,67680.0,67673.0,0.014782]
[1771645949132,0.014781,67680.0,67672.0,0.014782]
[1771645949528,0.014781,67680.0,67662.0,0.51640866]
[1771645949529,0.014779,67689.0,67673.0,0.014782]
[1771645949736,0.01478,67683.0,67675.0,0.014782]
[1771645950033,0.014781,67682.0,67675.0,0.014782]
[1771645950332,0.014781,67682.0,67675.0,0.029564]
[1771645950533,0.014781,67682.0,67675.0,0.014782]
[1771645952435,0.014781,67682.0,67676.0,0.014782]
[1771645952637,0.01478,67683.0,67676.0,0.014782]
[1771645953036,0.01478,67683.0,67677.0,0.015661]
[1771645953239,0.01478,67683.0,67677.0,0.014781]
[1771645953638,0.01478,67683.0,67677.0,0.029562]
[1771645954437,0.01478,67683.0,67678.0,0.014781]
[1771645956435,0.014781,67681.0,67675.0,0.029564]
[1771645957233,0.014781,67680.0,67675.0,0.029564]
[1771645957435,0.014781,67680.0,67675.0,0.014782]
[1771645958142,0.014781,67679.0,67675.0,0.014782]
[1771645958444,0.014781,67679.0,67674.0,0.014782]
[1771645960645,0.014781,67679.0,67673.0,0.014782]
[1771645963347,0.014781,67680.0,67673.0,0.014782]
[1771645963546,0.20545992,67679.0,67673.0,0.014782]
[1771645963748,0.014781,67680.0,67673.0,0.014782]
[1771645963945,0.2054606,67679.0,67673.0,0.014782]
[1771645964151,0.014781,67680.0,67674.0,0.014782]
[1771645964349,0.20547427,67679.0,67674.0,0.014782]
[1771645964551,0.014781,67680.0,67674.0,0.014782]
[1771645964749,0.20548131,67679.0,67674.0,0.014782]
[1771645964949,0.014781,67680.0,67674.0,0.014782]
[1771645965149,0.20548114,67679.0,67674.0,0.014782]
[1771645965347,0.014781,67680.0,67674.0,0.014782]
[1771645965548,0.20549173,67679.0,67674.0,0.014782]
[1771645965746,0.014781,67680.0,67674.0,0.014782]
[1771645965947,0.2054919,67679.0,67674.0,0.014782]
[1771645966146,0.014781,67680.0,67674.0,0.014782]
[1771645966453,0.20550527,67679.0,67675.0,0.014782]
[1771645966652,0.01478,67682.0,67675.0,0.014782]
[1771645966844,0.20550547,67681.0,67675.0,0.014782]
[1771645967044,0.20550547,67680.0,67675.0,0.014782]
[1771645967244,0.20550547,67679.0,67675.0,0.014782]
[1771645967446,0.01478,67682.0,67675.0,0.014782]
[1771645967648,0.20552273,67681.0,67675.0,0.014782]
[1771645967848,0.20552273,67680.0,67675.0,0.014782]
[1771645968145,0.20552273,67679.0,67675.0,0.014782]
[1771645968351,0.01478,67682.0,67675.0,0.014782]
[1771645968653,0.20557443,67681.0,67675.0,0.014782]
[1771645968954,0.01478,67682.0,67675.0,0.014782]
[1771645971258,0.01478,67682.0,67676.0,0.014782]
[1771645971651,0.01478,67682.0,67677.0,0.014781]
[1771645972055,0.02956,67684.0,67678.0,0.014781]